bitfinex/quotes_BTCUSD_20241014
["timestamp","ask_amount","ask_price","bid_price","bid_amount"]
[1728914750589,0.153027,65348.0,65344.0,0.153035]
[1728914750826,0.153026,65349.0,65345.0,0.153033]
[1728914751056,0.153026,65349.0,65343.0,0.001644]
[1728914751057,0.153026,65349.0,65346.0,0.153031]
[1728914751289,0.005,65353.0,65346.0,0.15352847]
[1728914751526,0.23018668,65352.0,65346.0,0.15352847]
[1728914751781,0.23018668,65352.0,65347.0,0.306058]
[1728914751998,0.23018668,65352.0,65350.0,0.153021]
[1728914752483,0.153014,65354.0,65350.0,0.153021]
[1728914752719,0.153005,65358.0,65353.0,0.153014]
[1728914752992,0.004,65352.0,65347.0,0.306057]
[1728914753229,0.004,65352.0,65346.0,0.15352847]
[1728914753230,0.004,65352.0,65348.0,0.306051]
[1728914753475,0.004,65353.0,65350.0,0.153021]
[1728914753930,0.153015,65353.0,65348.0,0.459075]
[1728914754189,0.153015,65353.0,65347.0,0.153028]
[1728914754190,0.153021,65351.0,65347.0,0.153028]
[1728914754438,0.30603,65353.0,65346.0,0.15352847]
[1728914754677,0.153036,65344.0,65343.0,0.001644]
[1728914755401,0.253036,65344.0,65343.0,0.001644]
[1728914756314,0.267036,65344.0,65343.0,0.001644]
[1728914757037,0.280036,65344.0,65343.0,0.001644]
[1728914758964,0.303036,65344.0,65343.0,0.001644]
[1728914759382,0.46156447,65344.0,65343.0,0.001644]
[1728914762224,0.60776549,65344.0,65343.0,0.001644]
[1728914762465,0.9615972,65344.0,65343.0,0.001644]
[1728914762676,0.69866549,65344.0,65343.0,0.001644]
[1728914762913,0.9615972,65344.0,65343.0,0.001644]
[1728914763136,0.9485972,65344.0,65343.0,0.001644]
[1728914763401,1.7193542,65344.0,65343.0,0.001644]
[1728914763651,0.291054,65336.0,65335.0,0.001646]
[1728914763886,3.44296747,65336.0,65335.0,0.001646]
[1728914764104,1.26701947,65336.0,65335.0,0.001646]
[1728914764308,0.72574247,65336.0,65335.0,0.001646]
[1728914764586,0.8173635,65336.0,65335.0,0.001646]
[1728914764805,0.81736479,65336.0,65335.0,0.001646]
[1728914765219,0.72774247,65336.0,65335.0,0.001646]
[1728914765439,0.72574247,65336.0,65335.0,0.001646]
[1728914765685,0.85734247,65336.0,65335.0,0.001646]
[1728914765897,0.91203468,65336.0,65335.0,0.001646]
[1728914766106,0.85734247,65336.0,65335.0,0.001646]
[1728914766330,0.92801584,65336.0,65335.0,0.001646]
[1728914766544,1.03353531,65336.0,65335.0,0.001646]
[1728914766775,1.04753531,65336.0,65335.0,0.001646]
[1728914766996,0.95781031,65336.0,65335.0,0.001646]
[1728914767221,0.015,65334.0,65333.0,4.98657226]
[1728914767473,0.70751918,65334.0,65333.0,4.98657226]
[1728914767706,0.70951918,65334.0,65333.0,4.98657226]
[1728914767930,3.69343818,65334.0,65333.0,4.98657226]
[1728914768161,3.37804318,65334.0,65333.0,4.98657226]
[1728914768497,3.44667252,65334.0,65333.0,4.98657226]
[1728914768696,3.60030816,65334.0,65333.0,4.95613663]
[1728914768925,2.42539418,65334.0,65333.0,4.92225678]
[1728914769158,1.98061544,65334.0,65333.0,4.92225678]
[1728914769375,1.99460431,65334.0,65333.0,4.92225678]
[1728914769831,1.96437431,65334.0,65333.0,4.92225678]
[1728914770060,1.97837431,65334.0,65333.0,4.92225678]
[1728914770298,2.08627669,65334.0,65333.0,4.92225678]
[1728914770559,2.13201482,65334.0,65333.0,4.92225678]
[1728914770787,1.97837431,65334.0,65333.0,4.92225678]
[1728914771501,1.93263618,65334.0,65333.0,4.71239492]
[1728914771786,1.93263618,65334.0,65333.0,3.89015744]
[1728914772011,2.08827669,65334.0,65333.0,3.79832144]
[1728914772254,2.13401482,65334.0,65333.0,3.45576616]
[1728914772456,2.08827669,65334.0,65333.0,3.45576616]
[1728914773101,2.15690116,65334.0,65333.0,3.45741616]
[1728914773322,2.08827669,65334.0,65333.0,3.45741616]
[1728914774239,2.13398288,65334.0,65333.0,3.45741616]
[1728914774472,2.08827669,65334.0,65333.0,3.45741616]
[1728914774965,1.93463618,65334.0,65333.0,3.45741616]
[1728914775196,1.98034237,65334.0,65333.0,3.45741616]
[1728914775442,1.98034237,65334.0,65333.0,3.41118575]
[1728914775650,1.95232759,65334.0,65333.0,2.34214973]
[1728914775865,2.01862891,65334.0,65333.0,2.30298066]
[1728914776393,2.18626942,65334.0,65333.0,1.81522403]
[1728914776395,2.24886942,65334.0,65333.0,1.54626137]
[1728914776664,2.31749389,65334.0,65333.0,1.45442537]
[1728914776884,2.31749389,65334.0,65333.0,1.39320137]
[1728914777130,2.47686942,65334.0,65333.0,0.52141859]
[1728914777350,2.49086942,65334.0,65333.0,0.49932859]
[1728914777596,0.017,65319.0,65310.0,0.23018668]
[1728914777860,6.99202669,65319.0,65310.0,0.23018668]
[1728914778330,6.99202669,65319.0,65306.0,0.0171889]
[1728914778331,0.44856622,65315.0,65311.0,0.23018668]
[1728914778560,3.46555169,65315.0,65306.0,0.0171889]
[1728914778774,3.46755169,65315.0,65306.0,0.0171889]
[1728914779227,1.930024,65315.0,65311.0,0.0794]
[1728914779451,0.23018668,65336.0,65320.0,0.0757]
[1728914779684,0.23018668,65336.0,65335.0,0.1113]
[1728914779939,0.23018668,65336.0,65335.0,0.1928]
[1728914780424,0.18046222,65338.0,65335.0,0.1928]
[1728914780890,0.000825,65346.0,65335.0,0.1928]
[1728914781128,0.23018668,65342.0,65335.0,0.1928]
[1728914781378,0.000825,65346.0,65336.0,0.153053]
[1728914781603,0.000825,65346.0,65335.0,0.1928]
[1728914781823,0.012,65338.0,65335.0,0.1928]
[1728914782045,0.000825,65346.0,65335.0,0.1928]
[1728914782490,0.002,65342.0,65335.0,0.1928]
[1728914782716,0.005825,65346.0,65345.0,0.153033]
[1728914782940,0.000825,65346.0,65345.0,0.265533]
[1728914783166,0.000825,65346.0,65345.0,0.1125]
[1728914783404,0.005825,65346.0,65345.0,0.265533]
[1728914783627,0.005825,65346.0,65345.0,0.347033]
[1728914784359,0.005825,65346.0,65345.0,0.61062407]
[1728914784365,0.005825,65346.0,65345.0,0.194]
[1728914784583,0.005825,65346.0,65319.0,0.23018668]
[1728914784584,0.005,65344.0,65334.0,0.1111]
[1728914784810,0.1,65342.0,65336.0,0.23018668]
[1728914785028,0.25352847,65342.0,65334.0,0.1111]
[1728914785264,0.000825,65336.0,65334.0,0.1111]
[1728914785520,0.15435347,65336.0,65334.0,0.1111]
[1728914786948,0.16235347,65336.0,65334.0,0.1111]
[1728914787441,0.17235347,65336.0,65334.0,0.1111]
[1728914791433,0.005,65328.0,65324.0,0.00165]
[1728914791705,0.123,65325.0,65324.0,0.00165]
[1728914791973,0.1,65325.0,65324.0,0.00165]
[1728914792232,0.1,65332.0,65325.0,0.1146]
[1728914792476,0.1,65333.0,65325.0,0.1146]
[1728914792974,0.000825,65336.0,65326.0,0.26359107]
[1728914793206,0.000825,65336.0,65325.0,0.1146]
[1728914793207,0.23018668,65333.0,65325.0,0.1146]
[1728914793460,0.000825,65336.0,65325.0,0.1146]
[1728914793712,0.23018668,65334.0,65328.0,0.153072]
[1728914793959,0.000825,65336.0,65327.0,0.153074]
[1728914794685,0.014825,65336.0,65328.0,0.153072]
[1728914794930,0.014825,65336.0,65326.0,0.306156]
[1728914795188,0.014825,65336.0,65325.0,0.267678]
[1728914795443,0.014825,65336.0,65325.0,0.1146]
[1728914795693,0.23018668,65334.0,65325.0,0.1146]
[1728914795948,0.16435347,65336.0,65325.0,0.1146]
[1728914796196,0.018825,65336.0,65326.0,0.306156]
[1728914796457,0.018825,65336.0,65325.0,0.1146]
[1728914796458,0.028825,65336.0,65325.0,0.1146]
[1728914796749,0.010825,65336.0,65335.0,0.270657]
[1728914797230,0.010825,65336.0,65335.0,0.1176]
[1728914797707,0.010825,65336.0,65335.0,0.270657]
[1728914798417,0.001825,65336.0,65335.0,0.345757]
[1728914798651,0.001825,65336.0,65335.0,0.346757]
[1728914798890,0.000825,65346.0,65335.0,0.34722847]
[1728914799136,0.23018668,65339.0,65338.0,0.41664107]
[1728914799372,0.000825,65346.0,65344.0,0.153034]
[1728914799651,0.000825,65346.0,65345.0,0.153033]
[1728914800144,0.005825,65346.0,65343.0,0.306077]
[1728914800386,0.005825,65346.0,65343.0,0.153037]
[1728914801118,0.005825,65346.0,65344.0,0.153035]
[1728914801358,0.005825,65346.0,65345.0,0.153033]
[1728914801588,0.000825,65346.0,65345.0,0.264233]
[1728914801875,0.000825,65346.0,65345.0,0.263733]
[1728914802115,0.012825,65346.0,65345.0,0.263733]
[1728914802352,0.005825,65346.0,65345.0,0.263733]
[1728914802584,0.005825,65346.0,65345.0,0.1112]
[1728914802585,0.012825,65346.0,65345.0,0.1112]
[1728914802832,0.012825,65346.0,65345.0,0.76345254]
[1728914803067,0.000825,65361.0,65354.0,0.153012]
[1728914803068,0.23018668,65355.0,65354.0,0.153012]
[1728914803320,0.23018668,65355.0,65350.0,0.30604]
[1728914803550,0.23018668,65355.0,65346.0,0.1126]
[1728914803788,0.153013,65354.0,65346.0,0.26563]
[1728914804022,0.000825,65361.0,65346.0,0.1126]
[1728914804023,0.153017,65352.0,65346.0,0.1126]
[1728914804261,0.153001,65359.0,65346.0,0.1126]
[1728914804502,0.23018668,65356.0,65348.0,0.153024]
[1728914804733,0.23018668,65356.0,65349.0,0.153023]
[1728914804959,0.153011,65355.0,65348.0,0.153026]
[1728914805185,0.153011,65355.0,65346.0,0.418662]
[1728914805186,0.153017,65353.0,65346.0,0.1126]
[1728914805426,0.1,65354.0,65346.0,0.1136]
[1728914805703,0.153029,65347.0,65346.0,0.1136]
[1728914805943,0.153029,65347.0,65337.0,0.535551]
[1728914805944,0.306047,65350.0,65337.0,0.0764]
[1728914806193,0.1,65352.0,65337.0,0.0764]
[1728914806434,0.003,65356.0,65351.0,0.23018668]
[1728914806695,0.003,65356.0,65355.0,0.27441]
[1728914806956,0.23018668,65368.0,65360.0,0.152998]
[1728914807188,0.23018668,65368.0,65360.0,0.264598]
[1728914807414,0.23018668,65368.0,65360.0,0.53318907]
[1728914807870,0.23101168,65375.0,65360.0,0.69671754]
[1728914807871,0.23022668,65367.0,65360.0,0.69671754]
[1728914808115,0.23022668,65367.0,65360.0,0.77311754]
[1728914808339,4e-05,65367.0,65364.0,0.1198]
[1728914808567,4e-05,65367.0,65366.0,0.41657507]
[1728914809955,0.23101168,65375.0,65366.0,0.41657507]
[1728914809956,0.000825,65375.0,65374.0,0.41655707]
[1728914810461,0.000825,65375.0,65374.0,0.61275707]
[1728914811188,0.000825,65375.0,65374.0,0.349166]
[1728914812113,0.000825,65375.0,65374.0,0.354166]
[1728914812114,0.001825,65375.0,65374.0,0.354166]
[1728914812569,0.000825,65375.0,65374.0,0.349166]
[1728914813060,0.000825,65375.0,65374.0,0.77228554]
[1728914814859,0.000825,65375.0,65374.0,0.77213554]
[1728914817056,0.000825,65375.0,65374.0,0.278616]
[1728914817536,0.000825,65375.0,65374.0,0.54220707]
[1728914817998,0.000825,65375.0,65374.0,0.12565]
[1728914818449,0.000825,65375.0,65374.0,0.278616]
[1728914818668,0.000825,65375.0,65374.0,0.77239375]
[1728914818876,0.000825,65375.0,65374.0,0.54220707]
[1728914819081,0.00017582,65378.0,65377.0,0.152958]
[1728914819335,0.00017582,65378.0,65377.0,0.30648647]
[1728914819561,0.0332,65380.0,65379.0,0.152954]
[1728914819802,0.0332,65380.0,65379.0,0.57007354]
[1728914820247,0.0332,65380.0,65379.0,0.41654507]
[1728914821170,0.0332,65380.0,65379.0,0.26359107]
[1728914821171,0.186151,65380.0,65379.0,0.26359107]
[1728914821389,0.0332,65380.0,65379.0,0.26359107]
[1728914821638,0.0332,65380.0,65379.0,0.41654507]
[1728914822013,0.0342,65380.0,65379.0,0.27259107]
[1728914822244,0.0352,65380.0,65379.0,0.27759107]
[1728914822458,0.0342,65380.0,65379.0,0.26859107]
[1728914822709,0.0362,65380.0,65379.0,0.26359107]
[1728914822983,0.0382,65380.0,65379.0,0.26359107]
[1728914823222,0.0382,65380.0,65374.0,0.26359107]
[1728914823440,0.305916,65378.0,65374.0,0.26359107]
[1728914823652,0.152957,65378.0,65374.0,0.26359107]
[1728914824103,0.305915,65378.0,65374.0,0.26359107]
[1728914824350,0.0382,65380.0,65374.0,0.26359107]
[1728914824558,0.152957,65378.0,65374.0,0.26359107]
[1728914824803,0.305912,65379.0,65374.0,0.26359107]
[1728914825036,0.152965,65375.0,65370.0,0.26359107]
[1728914825313,0.305958,65369.0,65358.0,0.46118968]
[1728914825541,0.305977,65365.0,65358.0,0.23018668]
[1728914825801,0.152992,65363.0,65361.0,0.26359107]
[1728914826248,0.1,65373.0,65362.0,0.15352847]
[1728914826471,0.1,65373.0,65358.0,0.306003]
[1728914826472,0.33018668,65371.0,65370.0,0.001]
[1728914826697,0.48315968,65371.0,65370.0,0.001]
[1728914826909,0.252973,65371.0,65370.0,0.001]
[1728914827654,0.252973,65371.0,65351.0,0.306039]
[1728914827655,0.152996,65362.0,65351.0,0.306039]
[1728914827908,0.1,65371.0,65358.0,0.23018668]
[1728914828120,0.1,65371.0,65361.0,0.001]
[1728914828121,0.152994,65362.0,65361.0,0.001]
[1728914828381,0.153003,65359.0,65353.0,0.315314]
[1728914828624,0.153004,65358.0,65353.0,0.315314]
[1728914828855,0.153009,65356.0,65353.0,0.1623]
[1728914829077,0.153007,65357.0,65356.0,0.26359107]
[1728914829308,0.306021,65355.0,65347.0,0.26359107]
[1728914829527,0.306021,65355.0,65351.0,0.26359107]
[1728914829769,0.153017,65352.0,65351.0,0.26359107]
[1728914830474,0.001,65357.0,65346.0,0.001648]
[1728914830713,0.153029,65347.0,65346.0,0.001648]
[1728914831186,0.253029,65347.0,65346.0,0.001648]
[1728914831437,0.48321568,65347.0,65346.0,0.001648]
[1728914831679,0.75554415,65347.0,65346.0,0.001648]
[1728914831919,0.54662588,65347.0,65346.0,0.002648]
[1728914832136,2.06612795,65347.0,65346.0,0.002648]
[1728914832379,2.08872375,65347.0,65346.0,0.002648]
[1728914832662,2.09071331,65347.0,65346.0,0.002648]
[1728914832895,2.09071331,65347.0,65346.0,0.001648]
[1728914832896,2.08371331,65347.0,65346.0,0.001648]
[1728914833107,2.25909172,65347.0,65346.0,0.002648]
[1728914833327,2.11171331,65347.0,65346.0,0.002648]
[1728914834259,1.7392007,65347.0,65346.0,0.002648]
[1728914834483,1.7252007,65347.0,65346.0,0.001648]
[1728914834702,1.7392007,65347.0,65346.0,0.001648]
[1728914834914,1.6582307,65347.0,65346.0,0.001648]
[1728914835148,1.5173697,65347.0,65346.0,0.001648]
[1728914835384,1.08391173,65347.0,65346.0,0.001648]
[1728914835620,1.07747073,65347.0,65346.0,0.001648]
[1728914835847,1.07847073,65347.0,65346.0,0.001648]
[1728914836108,1.07747073,65347.0,65346.0,0.001648]
[1728914836326,1.02783473,65347.0,65346.0,0.001648]
[1728914836568,0.84357473,65347.0,65346.0,0.001648]
[1728914836815,0.57998366,65347.0,65346.0,0.001648]
[1728914837032,1.18147524,65347.0,65346.0,0.001648]
[1728914837246,1.02983473,65347.0,65346.0,0.001648]
[1728914837724,1.02783473,65347.0,65346.0,0.001648]
[1728914837964,0.56998366,65347.0,65346.0,0.001648]
[1728914838186,0.68436966,65347.0,65346.0,0.001648]
[1728914838419,0.56598366,65347.0,65346.0,0.001648]
[1728914838654,0.57998366,65347.0,65346.0,0.001648]
[1728914838885,0.67101666,65347.0,65346.0,0.001648]
[1728914839134,0.55198366,65347.0,65346.0,0.001648]
[1728914839368,0.56798366,65347.0,65346.0,0.001648]
[1728914839627,0.55738786,65347.0,65346.0,0.001648]
[1728914839871,0.77257454,65347.0,65346.0,0.001648]
[1728914840086,0.59995672,65347.0,65346.0,0.001648]
[1728914840350,0.60195672,65347.0,65346.0,0.001648]
[1728914841046,0.57395672,65347.0,65346.0,0.001648]
[1728914841300,0.58795672,65347.0,65346.0,0.001648]
[1728914841536,0.55738786,65347.0,65346.0,0.001648]
[1728914842009,0.46158786,65347.0,65346.0,0.001648]
[1728914842470,0.44758786,65347.0,65346.0,0.001648]
[1728914842702,0.43858786,65347.0,65346.0,0.001648]
[1728914842945,0.46658786,65347.0,65346.0,0.001648]
[1728914844158,0.45258786,65347.0,65346.0,0.001648]
[1728914844404,0.43358786,65347.0,65346.0,0.001648]
[1728914844622,0.46158786,65347.0,65346.0,0.001648]
[1728914844834,0.44758786,65347.0,65346.0,0.001648]
[1728914845310,0.281029,65347.0,65346.0,0.001648]
[1728914845796,0.181029,65347.0,65346.0,0.001648]
[1728914846733,0.00506987,65347.0,65346.0,0.66586754]
[1728914846953,0.23601168,65381.0,65346.0,0.66586754]
[1728914846954,0.23018668,65367.0,65364.0,0.305977]
[1728914847180,0.23018668,65367.0,65364.0,0.0778]
[1728914847644,0.23018668,65374.0,65364.0,0.0778]
[1728914848179,0.134024,65380.0,65366.0,0.23018668]
[1728914848431,0.134024,65380.0,65370.0,0.305946]
[1728914848432,0.034024,65380.0,65370.0,0.305946]
[1728914848650,0.034024,65380.0,65373.0,0.152968]
[1728914848893,0.034024,65380.0,65370.0,0.15352847]
[1728914849142,0.034024,65380.0,65373.0,0.38315468]
[1728914849143,0.01,65374.0,65373.0,0.38315468]
[1728914849386,0.01,65374.0,65373.0,0.31149647]
[1728914849630,0.034024,65380.0,65376.0,0.005]
[1728914849883,0.23018668,65379.0,65378.0,0.152956]
[1728914850134,0.23018668,65379.0,65365.0,0.01]
[1728914850362,0.034024,65380.0,65364.0,0.0778]
[1728914850623,0.305947,65371.0,65364.0,0.0778]
[1728914850848,0.152984,65367.0,65364.0,0.23018668]
[1728914851092,0.1,65371.0,65364.0,0.23018668]
[1728914851341,0.1,65371.0,65366.0,0.001]
[1728914851835,0.23018668,65377.0,65367.0,0.15352847]
[1728914852085,0.23018668,65377.0,65368.0,0.305957]
[1728914852329,0.034024,65380.0,65372.0,0.0819]
[1728914852590,0.034024,65380.0,65377.0,0.152957]
[1728914852591,0.23018668,65379.0,65377.0,0.152957]
[1728914852853,0.23018668,65379.0,65372.0,0.0819]
[1728914852854,0.305926,65376.0,65352.0,0.1516]
[1728914853086,0.41711954,65378.0,65352.0,0.1516]
[1728914853087,0.26359107,65368.0,65364.0,0.23018668]
[1728914853363,0.305981,65364.0,65353.0,0.005]
[1728914853588,0.005,65371.0,65357.0,0.23018668]
[1728914853842,0.23518668,65371.0,65366.0,0.005]
[1728914854344,0.23101168,65381.0,65367.0,0.15352847]
[1728914854577,0.23018668,65374.0,65372.0,0.005]
[1728914854827,0.135024,65380.0,65367.0,0.15352847]
[1728914854828,0.134024,65380.0,65368.0,0.152978]
[1728914855084,0.034024,65380.0,65373.0,0.38512847]
[1728914855312,0.23018668,65379.0,65374.0,0.30593]
[1728914855543,0.23018668,65379.0,65373.0,0.38512847]
[1728914855544,0.23018668,65379.0,65375.0,0.30649147]
[1728914855788,0.23018668,65379.0,65375.0,0.15352847]
[1728914856013,0.034024,65380.0,65375.0,0.15352847]
[1728914856481,0.034024,65380.0,65376.0,0.152959]
[1728914856696,0.034024,65380.0,65376.0,0.15352847]
[1728914856939,0.034024,65380.0,65379.0,0.43154507]
[1728914857189,0.034024,65380.0,65379.0,0.58507354]
[1728914857654,0.037024,65380.0,65379.0,0.58507354]
[1728914858091,0.034024,65380.0,65379.0,0.58507354]
[1728914858361,0.035024,65380.0,65379.0,0.59707354]
[1728914858595,0.035024,65380.0,65379.0,0.32848247]
[1728914858836,0.034024,65380.0,65379.0,0.32148247]
[1728914859270,0.036024,65380.0,65379.0,0.34648247]
[1728914859959,0.036024,65380.0,65379.0,0.34148247]
[1728914862492,0.036024,65380.0,65379.0,0.18352847]
[1728914862714,0.036024,65380.0,65379.0,0.025]
[1728914862936,0.036024,65380.0,65379.0,0.029]
[1728914863398,0.036024,65380.0,65379.0,0.59907354]
[1728914863638,0.036024,65380.0,65379.0,0.59607354]
[1728914863639,0.035024,65380.0,65379.0,0.59607354]
[1728914863847,0.034024,65380.0,65379.0,0.58507354]
[1728914864076,0.034024,65380.0,65379.0,0.74117354]
[1728914864295,0.041024,65380.0,65379.0,0.74217354]
[1728914864816,0.034024,65380.0,65379.0,0.74117354]
[1728914865250,0.035024,65380.0,65379.0,0.75317354]
[1728914865477,0.042024,65380.0,65379.0,0.75417354]
[1728914865691,0.035024,65380.0,65379.0,0.74317354]
[1728914866157,0.036024,65380.0,65379.0,0.75017354]
[1728914866381,0.036024,65380.0,65379.0,0.75517354]
[1728914866842,0.036024,65380.0,65379.0,0.76017354]
[1728914872293,0.036024,65380.0,65379.0,0.17252847]
[1728914872527,0.036024,65380.0,65379.0,0.019]
[1728914872978,0.188975,65380.0,65379.0,0.019]
[1728914873424,0.036024,65380.0,65379.0,0.019]
[1728914873672,0.188975,65380.0,65379.0,0.019]
[1728914873906,0.036024,65380.0,65379.0,0.019]
[1728914874148,0.036024,65380.0,65379.0,0.17252847]
[1728914874362,0.036024,65380.0,65379.0,0.32548247]
[1728914875054,0.036024,65380.0,65379.0,0.33048247]
[1728914875276,0.036024,65380.0,65379.0,0.58199976]
[1728914876494,0.036024,65380.0,65379.0,0.57699976]
[1728914876715,0.036024,65380.0,65379.0,0.03022278]
[1728914876930,0.036024,65380.0,65379.0,0.019]
[1728914877396,0.036024,65380.0,65379.0,0.03501729]
[1728914877631,0.036024,65380.0,65379.0,0.18797129]
[1728914878523,0.036024,65380.0,65379.0,0.019]
[1728914878785,0.036024,65380.0,65379.0,0.03507527]
[1728914879017,0.036024,65380.0,65379.0,0.03507533]
[1728914879466,0.188975,65380.0,65379.0,0.03026391]
[1728914879691,0.188975,65380.0,65379.0,0.019]
[1728914880143,0.035024,65380.0,65379.0,0.007]
[1728914880396,0.035024,65380.0,65372.0,0.16904433]
[1728914880397,0.034024,65380.0,65372.0,0.16904433]
[1728914880629,0.035024,65380.0,65379.0,0.006]
[1728914880869,0.41916168,65380.0,65379.0,0.012]
[1728914881093,0.41916168,65380.0,65369.0,0.301675]
[1728914881094,0.152961,65376.0,65372.0,0.01607533]
[1728914881339,0.152957,65378.0,65375.0,0.01126853]
[1728914881564,0.152957,65378.0,65374.0,0.01607995]
[1728914881807,0.040024,65380.0,65370.0,0.00481142]
[1728914882023,0.152964,65375.0,65371.0,0.01607897]
[1728914882251,0.040024,65380.0,65372.0,0.01607897]
[1728914882470,0.040024,65380.0,65361.0,0.0824]
[1728914882471,0.152966,65374.0,65367.0,0.005]
[1728914882735,0.152977,65369.0,65368.0,0.01607897]
[1728914882996,0.305957,65369.0,65361.0,0.01608069]
[1728914883249,0.152973,65371.0,65362.0,0.16907369]
[1728914883494,0.30361507,65380.0,65370.0,0.23018668]
[1728914883495,0.041024,65380.0,65370.0,0.23018668]
[1728914883707,0.041024,65380.0,65373.0,0.157968]
[1728914883708,0.001,65374.0,65373.0,0.157968]
[1728914883928,0.23018668,65379.0,65373.0,0.02108069]
[1728914884196,0.034024,65380.0,65379.0,0.157954]
[1728914884449,0.034024,65380.0,65379.0,0.17922327]
[1728914884687,0.034024,65380.0,65379.0,0.25672327]
[1728914884919,0.034024,65380.0,65379.0,0.52031434]
[1728914885407,0.034024,65380.0,65379.0,0.52512491]
[1728914885866,0.034024,65380.0,65379.0,0.67152342]
[1728914886130,0.034024,65380.0,65379.0,0.82505189]
[1728914886350,0.034024,65380.0,65379.0,0.01607984]
[1728914886584,0.034024,65380.0,65363.0,0.1526]
[1728914886585,0.152963,65375.0,65374.0,0.01607984]
[1728914886841,0.339929,65380.0,65364.0,0.23018668]
[1728914886842,0.152962,65376.0,65365.0,0.01608421]
[1728914887085,0.305952,65370.0,65366.0,0.01608519]
[1728914887344,0.01431318,65375.0,65357.0,0.23018668]
[1728914887345,0.1,65375.0,65357.0,0.23018668]
[1728914887584,0.0762,65368.0,65358.0,0.24627125]
[1728914887819,0.305971,65366.0,65359.0,0.01608896]
[1728914888034,0.152993,65363.0,65354.0,0.153011]
[1728914888260,0.306,65360.0,65355.0,0.0160884]
[1728914888477,0.1762,65368.0,65352.0,0.0160884]
[1728914888703,0.23018668,65363.0,65353.0,0.0160884]
[1728914888944,0.306021,65355.0,65347.0,0.001648]
[1728914889202,0.153021,65351.0,65349.0,0.23018668]
[1728914889429,0.23018668,65363.0,65347.0,0.001648]
[1728914889643,0.153026,65349.0,65347.0,0.001648]
[1728914889871,0.153026,65348.0,65347.0,0.001648]
[1728914890616,0.306021,65355.0,65347.0,0.001648]
[1728914890617,0.153013,65354.0,65347.0,0.002648]
[1728914890855,0.38320068,65354.0,65347.0,0.002648]
[1728914891084,0.23018668,65354.0,65347.0,0.002648]
[1728914891317,0.153003,65358.0,65349.0,0.153023]
[1728914891557,0.153003,65358.0,65347.0,0.156676]
[1728914891558,0.23018668,65356.0,65347.0,0.156676]
[1728914891775,0.38319668,65356.0,65347.0,0.003648]
[1728914892055,0.38319668,65356.0,65347.0,0.002648]
[1728914892056,0.1,65348.0,65347.0,0.002648]
[1728914892283,0.259026,65348.0,65347.0,0.003648]
[1728914892522,0.006,65348.0,65347.0,0.003648]
[1728914892766,0.23018668,65362.0,65347.0,0.001648]
[1728914893006,0.009,65354.0,65347.0,0.002648]
[1728914893244,0.009,65354.0,65347.0,0.156676]
[1728914893490,0.305997,65360.0,65347.0,0.001648]
[1728914893731,0.23018668,65362.0,65347.0,0.001648]
[1728914893967,0.003,65348.0,65347.0,0.154676]
[1728914895826,0.23018668,65362.0,65347.0,0.15517647]
[1728914896066,0.23018668,65362.0,65350.0,0.306041]
[1728914896067,0.23018668,65355.0,65350.0,0.306041]
[1728914896296,0.014,65360.0,65355.0,0.153009]
[1728914896539,0.24418668,65362.0,65351.0,0.45956547]
[1728914896540,0.23018668,65362.0,65352.0,0.306033]
[1728914896998,0.23018668,65362.0,65351.0,0.15352847]
[1728914897240,0.23018668,65363.0,65361.0,0.005]
[1728914897479,0.152994,65362.0,65361.0,0.005]
[1728914897703,0.305984,65363.0,65360.0,0.005]
[1728914897933,0.152996,65361.0,65360.0,0.005]
[1728914898211,0.152998,65360.0,65359.0,0.005]
[1728914898465,0.152998,65360.0,65355.0,0.002]
[1728914898466,0.153008,65356.0,65355.0,0.002]
[1728914898691,0.30653647,65356.0,65355.0,0.002]
[1728914899160,0.40653647,65356.0,65355.0,0.001]
[1728914899636,0.40653647,65356.0,65350.0,0.23018668]
[1728914899637,0.153019,65351.0,65350.0,0.23018668]
[1728914899853,0.153019,65351.0,65350.0,0.23218668]
[1728914900071,0.153019,65351.0,65350.0,0.002]
[1728914900290,0.153019,65351.0,65349.0,0.002]
[1728914900529,0.153019,65351.0,65348.0,0.005]
[1728914900530,0.15302,65351.0,65348.0,0.007]
[1728914900766,0.153019,65351.0,65348.0,0.007]
[1728914900982,0.459055,65352.0,65348.0,0.007]
[1728914901195,0.006,65351.0,65350.0,0.003]
[1728914901415,0.159019,65351.0,65350.0,0.001]
[1728914902753,0.164019,65351.0,65350.0,0.001]
[1728914902966,0.164019,65351.0,65348.0,0.007]
[1728914902967,0.005,65351.0,65348.0,0.007]
[1728914903186,0.153024,65349.0,65348.0,0.007]
[1728914903656,0.01,65351.0,65348.0,0.007]
[1728914903888,0.01,65351.0,65350.0,0.002]
[1728914904102,0.153018,65352.0,65348.0,0.005]
[1728914904103,0.153018,65352.0,65351.0,0.002]
[1728914904347,0.253018,65352.0,65351.0,0.002]
[1728914905514,0.253018,65352.0,65348.0,0.001646]
[1728914905515,0.123,65350.0,65348.0,0.001646]
[1728914905750,0.42955247,65349.0,65348.0,0.001646]
[1728914905992,0.69316535,65349.0,65348.0,0.001646]
[1728914907150,0.70616535,65349.0,65348.0,0.002646]
[1728914907381,0.72016535,65349.0,65348.0,0.002646]
[1728914909078,0.87380586,65349.0,65348.0,0.002646]
[1728914909323,1.43182966,65349.0,65348.0,0.002646]
[1728914909754,1.38581825,65349.0,65348.0,0.002646]
[1728914910010,1.37281825,65349.0,65348.0,0.001646]
[1728914910226,1.36269951,65349.0,65348.0,0.001646]
[1728914910463,1.39069951,65349.0,65348.0,0.002646]
[1728914910689,1.22197551,65349.0,65348.0,0.002646]
[1728914910919,1.15721551,65349.0,65348.0,0.001646]
[1728914911142,1.17121551,65349.0,65348.0,0.001646]
[1728914911379,0.55589063,65349.0,65348.0,0.002646]
[1728914911607,0.81950351,65349.0,65348.0,0.002646]
[1728914911824,0.88110351,65349.0,65348.0,0.002646]